Cogmind - Beta 16.1 @@@ ROGUE MODE // 2026.04.02 @ 13:43:34 Player: Benkyo Result: Escaped! Performance ------------- Evolutions (9) 4500 Regions Visited (26) 5200 Robots Destroyed (408) 2040 Value Destroyed (21746) 21746 Prototype IDs (166) 3320 Alien Tech Used (5) 1000 Bonus (17788) 17788 TOTAL SCORE: 55594 Bonus ------- High Alert Combat Kills 4074 Follower Combat Kills 3051 Hunted by Unchained 1000 Destroyed Unchained 1000 Network Hubs Disabled 600 Met Zhirov 300 Met Warlord at Base 500 MAIN.C Attacked Warlord 500 Warlord Defense Kills 252 Built Enhanced Grunts 300 A7 Reached Mainframe 300 Met R17 at Cetus 500 Met R17 at Research 2000 Scanned by Researcher 500 Win 3000 Friendly Fire -89 Cogmind --------- Core Integrity 1495/1600 Matter 250/300 Energy 854/861 System Corruption 1% Temperature Cool (0) Movement Treading (161) Location To Epsilon Eridani Parts ------- > --- POWER (3) -------- Micro Antimatter Reactor Reinforced Quantum Reactor Multi-Chain Reactor > --- PROPULSION (6) --- Biometal Leg Biometal Leg Biometal Leg Treaded HC Exoskeleton > --- UTILITY (12) ----- Armored Scrap Engine Concept Phasing Heat Sink Concept Phasing Heat Sink Concept Antigrav Storage Unit Advanced Sensor Array Advanced Signal Interpreter Concept Countertargeting System Experimental Core Analyzer Advanced Kinecellerator Centrium Medium Armor Plating Advanced Force Field > --- WEAPON (4) ------- Concept Helical Railcannon Concept Helical Railcannon Prc. Directed Strikerail Construct/C > --- INVENTORY (25) --- Micro Antimatter Reactor Quantum Reactor Light Quantum Reactor Light Quantum Reactor Improved Antigrav System Experimental Cooling System Experimental Coolant Injector Concept Chromion Battery (800) Concept Chromion Battery (0) Concept NT7 Matterbank (450) Concept Hypertargeting System Advanced Weapon Cycler Experimental Weapon Cycler Femtoactuators Advanced Transmission Jammer Advanced Phase Shifter Graphene Brace Advanced Component Analysis Suite Concept Matter Streamer Transdimensional Reconstructor Compact HERF Cannon Tactical Quantum Warhead Multitool Concept Deflector Sword Concept Deflector Sword Peak State ------------ > --- POWER ------------ Micro Antimatter Reactor Improved Quantum Reactor Multi-Chain Reactor > --- PROPULSION ------- Biometal Leg Biometal Leg Biometal Leg Treaded HC Exoskeleton > --- UTILITY ---------- Armored Scrap Engine Concept Phasing Heat Sink Concept Phasing Heat Sink Concept Antigrav Storage Unit Concept Countertargeting System Experimental Core Analyzer Advanced Kinecellerator Experimental Weapon Cycler Advanced Phase Shifter Advanced Force Field Concept Matter Streamer > --- WEAPON ----------- Concept Helical Railcannon Concept Helical Railcannon Prc. Directed Strikerail Construct/C > --- INVENTORY -------- Micro Antimatter Reactor Quantum Reactor Light Quantum Reactor Reinforced Quantum Reactor Improved Antigrav System Experimental Cooling System Experimental Coolant Injector Concept Chromion Battery Concept Chromion Battery Concept NT7 Matterbank Advanced Sensor Array Advanced Signal Interpreter Concept Hypertargeting System Advanced Weapon Cycler Femtoactuators Advanced Transmission Jammer Centrium Medium Armor Plating Graphene Brace Advanced Component Analysis Suite Transdimensional Reconstructor Subatomic Replicator Compact HERF Cannon Tactical Quantum Warhead Multitool Concept Deflector Sword [Rating: 262] Favorites ----------- Power Quantum Reactor Engine Improved Deuterium Engine Power Core Light Fission Core Reactor Quantum Reactor Propulsion Centrium Heavy Treads Treads Centrium Heavy Treads Leg Biometal Leg Wheel Compact Wheel Utility Huge Storage Unit Device Armored Scrap Engine Storage Huge Storage Unit Processor Advanced Signal Interpreter Hackware Makeshift System Shield Protection Hardened Medium Armor Plating Artifact Phase Redirector Weapon Enhanced Gauss Cannon Energy Gun Small Laser Energy Cannon Constructs Ballistic Gun Autogun Ballistic Cannon Enhanced Gauss Cannon Launcher Heavy Missile Launcher Special Weapon CPS Tube Impact Weapon Core Stripper Slashing Weapon Makeshift Sword Special Melee Weapon Advanced Datajack Build | -11 -10 -10 -8 -8 -8 -6 -6 -6 -6 -6 -5 -5 -5 -5 -4 -4 -4 -4 -4 -3 -3 -3 -2 -2 -2 -1 ------- Run | Yrd Mat Sub Mat Sto Rec Fac Ext Cet Arc Hub Fac Upp Upp War Pro Fac Upp Upp Zhi Pro Res Tes Res Qua Frg Acc Slots Evolved 18 | . . . 4 . . 4 . . . . 2 . . . . 2 . . . . 2 . 2 . . 2 Power 2 | . . . . . . . . . . . 1 . . . . . . . . . . . 1 . . . Propulsion 4 | . . . . . . 2 . . . . . . . . . 1 . . . . 1 . . . . . Utility 10 | . . . 4 . . . . . . . 1 . . . . 1 . . . . 1 . 1 . . 2 Weapon 2 | . . . . . . 2 . . . . . . . . . . . . . . . . . . . . Parts Attached 177 | 9 5 9 21 13 4 18 9 3 3 2 2 2 6 5 . 2 2 . 2 1 8 6 4 17 17 7 Power 18 | 1 1 2 3 . . 1 1 . . . 1 . 1 . . . . . . . . . 2 1 3 1 Engine 9 | 1 1 2 3 . . 1 1 . . . . . . . . . . . . . . . . . . . Core 1 | . . . . . . . . . . . . . 1 . . . . . . . . . . . . . Reactor 8 | . . . . . . . . . . . 1 . . . . . . . . . . . 2 1 3 1 Propulsion 29 | 4 . 1 3 3 2 4 2 1 . 1 . . . . . . . . 1 . . . 1 3 . 3 Treads 17 | 2 . . 2 2 . 3 1 1 . 1 . . . . . . . . 1 . . . 1 3 . . Leg 3 | . . . . . . . . . . . . . . . . . . . . . . . . . . 3 Wheel 9 | 2 . 1 1 1 2 1 1 . . . . . . . . . . . . . . . . . . . Hover . | . . . . . . . . . . . . . . . . . . . . . . . . . . . Flight . | . . . . . . . . . . . . . . . . . . . . . . . . . . . Utility 81 | 2 1 2 10 7 2 6 2 2 1 1 . 2 3 4 . 2 2 . . . 6 1 . 11 11 3 Device 53 | 1 . 1 5 2 2 3 2 . 1 1 . 2 2 3 . 1 2 . . . 5 1 . 8 9 2 Storage 5 | 1 1 . . . . 1 . . . . . . . . . . . . . . . . . . 2 . Processor 5 | . . . . . . 1 . . . . . . 1 1 . . . . . . . . . 1 . 1 Hackware 4 | . . . . 2 . 1 . . . . . . . . . . . . . . 1 . . . . . Protection 13 | . . 1 5 3 . . . 2 . . . . . . . 1 . . . . . . . 1 . . Artifact 1 | . . . . . . . . . . . . . . . . . . . . . . . . 1 . . Weapon 49 | 2 3 4 5 3 . 7 4 . 2 . 1 . 2 1 . . . . 1 1 2 5 1 2 3 . Energy Gun 1 | 1 . . . . . . . . . . . . . . . . . . . . . . . . . . Energy Cannon 3 | . . . . . . . . . . . . . . . . . . . . . . 2 . . 1 . Ballistic Gun 18 | 1 3 3 5 . . 5 1 . . . . . . . . . . . . . . . . . . . Ballistic Cannon 15 | . . . . 1 . 2 3 . 1 . 1 . 1 . . . . . . 1 2 . 1 . 2 . Launcher 3 | . . . . 1 . . . . . . . . 1 . . . . . . . . 1 . . . . Special Weapon 3 | . . . . . . . . . . . . . . 1 . . . . . . . 1 . 1 . . Impact Weapon 1 | . . . . . . . . . . . . . . . . . . . . . . . . 1 . . Slashing Weapon 2 | . . 1 . . . . . . . . . . . . . . . . . . . 1 . . . . Piercing Weapon . | . . . . . . . . . . . . . . . . . . . . . . . . . . . Special Melee Weapon 3 | . . . . 1 . . . . 1 . . . . . . . . . 1 . . . . . . . Unidentified Prototypes 18 | . . . . . 1 . . 2 . . . . . 2 . . . . 1 . . 1 . 5 5 1 Corrupted Parts 2 | . . . . . . . . 1 . 1 . . . . . . . . . . . . . . . . System Corruption 8 | . . . . . . . . 2 . 6 . . . . . . . . . . . . . . . . Parts Lost 31 | . . 3 2 3 . 7 1 . . 1 . . 2 . . 1 . 1 . . . . . 3 4 3 Power 4 | . . 1 . . . . . . . . . . 1 . . . . . . . . . . . 1 1 Propulsion 5 | . . 1 . . . 2 1 . . . . . . . . . . . . . . . . . 1 . Utility 16 | . . . 2 3 . 1 . . . 1 . . 1 . . 1 . 1 . . . . . 3 2 1 Weapon 6 | . . 1 . . . 4 . . . . . . . . . . . . . . . . . . . 1 Highest Loss Streak 3 | . . 2 2 2 . 2 1 . . 1 . . 1 . . 1 . 1 . . . . . 3 3 1 To Critical Strikes 1 | . . 1 . . . . . . . . . . . . . . . . . . . . . . . . Average Backups 23 | 6 14 23 24 23 22 22 22 23 23 23 23 25 24 24 25 24 24 24 24 25 24 23 23 23 22 24 Power . | 1 1 1 . 2 2 2 2 1 1 1 . . . . . . . . . . . . . . . 2 Propulsion 2 | 2 5 4 3 5 4 2 . . 1 1 3 2 2 1 1 1 1 1 . . . . . . . . Utility 11 | 1 3 7 10 8 7 13 13 11 12 12 11 11 11 13 12 10 11 11 10 13 13 14 13 13 13 14 Weapon 8 | . 4 9 8 7 8 4 5 8 8 8 8 10 9 8 9 9 9 9 9 8 7 6 6 5 4 3 Tool/Special . | . . . . . . . . . . . . . . . . . . . . . . . . . . . Unused Backups 108 | . 4 12 16 2 2 4 2 4 . 1 . 1 1 8 1 2 1 . 5 1 8 3 . 4 12 14 Power 10 | . . 1 . 1 . 1 1 1 . . . . . . . . . . 1 . . . . . . 4 Propulsion 15 | . 3 3 1 . . . . . . . . 1 . 3 . . . . 2 . . . . . . 2 Utility 45 | . 1 4 8 . 1 . 1 3 . . . . . 3 1 . 1 . 1 1 4 2 . . 10 4 Weapon 33 | . . 3 7 1 1 3 . . . 1 . . 1 2 . 2 . . 1 . 4 1 . 2 1 3 Tool/Special 5 | . . 1 . . . . . . . . . . . . . . . . . . . . . 2 1 1 Average Slot Usage (%) 86 | . 100 99 96 94 88 86 92 87 86 85 81 82 81 80 82 83 84 84 65 83 79 79 72 73 72 77 Engine 4 | . 14 13 9 8 9 6 6 5 6 6 5 5 1 . . . . . . . . . . . . . Reactor 4 | . . . . . . . . . . . 4 5 5 8 11 10 10 10 9 10 9 9 9 11 12 11 Treads 12 | . 14 14 7 13 11 12 24 20 20 20 11 11 11 11 11 10 10 10 9 14 14 14 11 7 6 4 Wheel 3 | . 14 14 10 4 6 12 1 1 . . . . . . . . . . . . . . . . . . Device 17 | . 14 4 23 14 11 12 13 14 18 19 23 22 18 16 17 20 20 19 14 15 16 19 17 19 26 30 Storage 6 | . 14 14 7 9 9 6 6 6 6 6 5 5 5 5 5 5 5 5 5 5 4 4 4 4 4 4 Processor 5 | . . . . . . 4 6 6 6 6 5 5 9 11 11 10 10 10 10 10 9 9 8 7 4 6 Hackware 2 | . . . . 12 9 6 5 . . . . . . . . . . . . . 1 . . . . . Protection 5 | . . 9 16 18 23 1 . 4 1 . . . . . . . . 1 5 5 3 4 4 2 3 1 Energy Gun 2 | . 7 . . . . . . 3 6 6 5 5 5 5 5 5 5 5 5 5 4 . . . . . Ballistic Gun 5 | . 21 27 19 8 . 8 10 . . . . . . . . . . . . . . . . . . . Ballistic Cannon 11 | . . . . 4 9 9 15 21 20 20 17 17 16 15 17 15 15 15 . 14 13 11 11 11 12 8 Peak Build Rating 262 | 8 12 21 58 38 49 71 79 98 99 106 118 123 124 145 144 160 160 161 156 156 175 189 190 220 252 262 Average Rating 104 | 5 9 16 37 35 36 65 75 87 95 95 116 119 118 129 134 152 152 154 135 155 169 171 180 196 221 241 On Entrance 111 | . 8 12 18 34 35 49 70 77 96 96 106 118 123 120 144 134 160 160 161 156 154 174 177 190 217 218 Avg Prop Armor Cover (%) 7 | 22 12 10 4 7 5 12 18 1 . . 9 . . . . 2 2 2 2 . 3 . . . 6 6 Naked Turns . | . . . . . . . . . . . . . . . . . . . . . . . . . . . Heaviest Build 212 | 14 92 95 177 127 127 124 126 127 125 121 150 156 150 154 154 177 174 174 174 174 185 183 204 212 193 162 Greatest Support 312 | 40 16 16 36 40 40 48 92 132 132 132 80 160 160 160 160 160 160 160 182 183 213 213 213 272 312 166 Greatest Overweight (x) 12 | 2 5 5 6 12 7 7 6 1 . 1 1 . . . . 1 1 1 1 1 . . 1 1 . . Average Overweight (x) 1 | 1 3 5 5 6 5 3 1 . . . 1 . . . . . . 1 . . . . . . . . Largest Inventory Capacity 25 | 8 25 25 25 25 25 25 25 25 25 25 25 25 25 25 25 25 25 25 25 25 25 25 25 25 25 25 Average Capacity 24 | 7 20 25 25 25 25 25 25 25 25 25 25 25 25 25 25 25 25 25 25 25 25 25 25 25 25 25 Most Carried 25 | 8 25 25 25 25 25 25 25 25 25 25 25 25 25 25 25 25 25 25 25 25 25 25 25 25 25 25 Average Carried 24 | 6 14 24 24 24 24 24 24 24 24 24 23 24 24 24 24 24 24 24 24 24 24 24 24 24 24 24 Final Capacity 25 | 8 25 25 25 25 25 25 25 25 25 25 25 25 25 25 25 25 25 25 25 25 25 25 25 25 25 25 Final Carried 25 | 8 25 24 25 25 25 25 25 25 25 25 25 25 23 25 25 25 25 25 25 25 25 25 25 25 25 25 Scrap Engine Consumption 75 | . . . . . 3 5 3 9 . . . . 1 5 1 2 . . 3 1 7 5 1 14 12 3 Constructs Created 4 | . . . . . . 1 . 1 . . . . . 1 . 1 . . . . . . . . . . Constructs Modified 22 | . . . . . . . 1 . . . . . 2 . . . . . 2 1 2 1 2 3 6 2 Class Distribution -------------------- 25% | Scavenger-Tank 19% | Mutant 16% | Scavenger-Skirmisher 9% | Tank 5% | Scavenger-Mutant 3% | Scientist-Tank 3% | Hacker-Mutant 3% | Commander-Gunner Dominant Class ---------------- Mutant | -10/Materials Mutant | -10/Subcaves Scavenger-Mutant | -8/Materials Mutant | -8/Storage Mutant | -8/Recycling Scavenger-Gunner | -6/Factory Commander-Gunner | -6/Extension Tank | -6/Cetus Commander-Skirmisher | -6/Archives Skirmisher | -6/Hub_04(d) Scavenger-Tank | -5/Factory Scavenger-Tank | -5/Upper Caves Scavenger-Skirmisher | -5/Upper Caves Commander-Tank | -5/Warlord Scavenger-Skirmisher | -4/Proximity Caves Scavenger-Tank | -4/Factory Scavenger-Tank | -4/Upper Caves Scavenger-Tank | -4/Upper Caves Scavenger-Mutant | -4/Zhirov Tank | -3/Proximity Caves Tank | -3/Research Scavenger-Skirmisher | -3/Testing Scientist-Tank | -2/Research Scientist-Tank | -2/Quarantine Tank | -2/Protoforge Scavenger-Gunner | -1/Access Resources | -11 -10 -10 -8 -8 -8 -6 -6 -6 -6 -6 -5 -5 -5 -5 -4 -4 -4 -4 -4 -3 -3 -3 -2 -2 -2 -1 ----------- Run | Yrd Mat Sub Mat Sto Rec Fac Ext Cet Arc Hub Fac Upp Upp War Pro Fac Upp Upp Zhi Pro Res Tes Res Qua Frg Acc Matter Collected 23013 | 306 132 610 1532 1121 200 1914 1151 335 220 367 . 851 711 703 630 360 230 284 . 526 807 608 957 1458 3722 3278 Remotely 8452 | . . . . . . 607 252 107 . 177 . 168 92 501 119 152 . . . . 35 176 560 774 2472 2260 Salvage Created 18580 | 99 169 699 1863 1760 236 1931 931 14 111 690 . 297 368 70 533 529 49 232 . 407 631 420 172 1146 2328 2895 Parts 838 | 10 15 37 95 99 12 84 41 1 8 34 . 7 14 3 16 27 . 5 . 14 12 19 7 35 103 140 Haulers Intercepted 13 | . . . 3 5 . 1 . . . 1 . . . . . . . . . . 1 1 . . . 1 Recyclers Shooed 15 | . . . 1 4 . 6 1 . . 2 . . . . . 1 . . . . . . . . . . Parts Field Recycled 22 | . . . 22 . . . . . . . . . . . . . . . . . . . . . . . Retrieved Matter 176 | . . . 176 . . . . . . . . . . . . . . . . . . . . . . . Parts Self-Destructed 63 | . . 9 . . . . . . . . . 6 14 . 18 . . 4 . 12 . . . . . . Prevented 2 | . . . . . . . . . . . . 2 . . . . . . . . . . . . . . Parts Restored 2 | . . . . . . . . . . . . . . . . . . . . . . . . . 2 . Faulty 2 | . . . . . . . . . . . . . . . . . . . . . . . . . 2 . Kills | -11 -10 -10 -8 -8 -8 -6 -6 -6 -6 -6 -5 -5 -5 -5 -4 -4 -4 -4 -4 -3 -3 -3 -2 -2 -2 -1 ------- Run | Yrd Mat Sub Mat Sto Rec Fac Ext Cet Arc Hub Fac Upp Upp War Pro Fac Upp Upp Zhi Pro Res Tes Res Qua Frg Acc Combat Hostiles Destroyed 309 | . 2 15 30 21 6 32 21 . 1 7 . 5 13 2 11 9 1 4 . 6 10 5 7 13 46 42 Guns 98 | . 2 15 30 21 . 18 3 . . 5 . . . . 1 2 . . . . 1 . . . . . Cannons 194 | . . . . . 6 14 18 . 1 2 . 4 9 2 10 6 1 4 . 2 9 5 2 12 45 42 AOE 13 | . . . . . . . . . . . . . 4 . . 1 . . . 4 . . 4 . . . Classes Destroyed 30 | 2 3 4 7 . 2 2 1 . . . . 1 . . . . . . . 1 1 1 . 1 3 1 Worker 17 | . 1 . 2 1 . 6 1 . . 1 . . . . . 2 . . . . . . . . 1 2 Builder 18 | . . . 1 1 . 4 1 . . 1 . . . . . 5 . . . . . . . . 1 4 Tunneler 4 | 2 . . . . . . . . . . . . . . . . . . . . . . . . . 2 Hauler 13 | . . . 3 5 . 1 . . . 1 . . . . . . . . . . 1 1 . . . 1 Recycler 13 | 1 . . . 4 1 2 1 . . 2 . . . . . 1 . . . . . . . . . 1 Mechanic 2 | . . . 1 . . . . . . . . . . . . . . . . . . . . . 1 . Operator 7 | . . . 1 . . . 1 . 2 1 . . . . . . . . . . . . . 1 1 . Drone 8 | . . . . . . . . . . . . . . . . . . . . 1 . . . . 7 . Watcher 24 | . 2 . 3 2 . 4 . 1 . 1 . . . . . 2 . . . . 1 1 . 3 1 3 Swarmer 47 | . . 3 . . . 7 5 . . . . . 6 . 2 3 . . . 4 . . 5 . . 12 Grunt 83 | . 2 . 20 10 . 13 4 . . 3 . 4 4 . 3 . 1 1 . . 7 . . 1 2 8 Brawler 3 | . . . . . . 1 . . . . . . . . 1 . . . . . . . . . . 1 Duelist 5 | . . . 2 2 . 1 . . . . . . . . . . . . . . . . . . . . Researcher 5 | . . . . . . . . . . . . . . . . . . . . . . 1 . . 4 . Sentry 48 | . . . 7 8 . 5 8 . 1 2 . 1 1 . 1 1 . 1 . . 2 3 . . 4 3 Demolisher 5 | . . . . . 1 . 2 . . . . . . 2 . . . . . . . . . . . . Specialist 2 | . . . . . . . . . . . . . . . . . . . . . . . . . . 2 Hunter 24 | . . . 1 1 . 1 . . . . . . 2 . 4 . . . . . . . 2 2 4 7 Programmer 35 | . . . . . 2 4 1 . . 2 . . . . . 5 . 2 . 1 . 2 . 8 4 4 Heavy 2 | . . . . . . 1 . . . . . . . . . . . . . . . . . . . 1 Q-Series 6 | . . . . . . . . . . . . . . . . . . . . . . . . . 2 4 Behemoth 1 | . . . . . . . 1 . . . . . . . . . . . . . . . . . . . Hotshot 4 | . . . . . . . . . . . . . . . . . . . . . . . . . 4 . Decapitator 7 | . . . . . . . . . . . . . . . . . . . . . . . . . 7 . Immortal 5 | . . . . . . . . . . . . . . . . . . . . . . . . . 5 . Overlord 1 | . . . . . . . . . . . . . . . . . . . . . . . . . 1 . Striker 1 | . . . . . . . . . . . . . . . . . . . . . 1 . . . . . Fortress 1 | . . . . . . . . . . . . . . . . . . . . . . . . 1 . . V-Series 6 | . . . . . . . . . . . . . . . . . . . . . . . . . 6 . Artisan 2 | . . 2 . . . . . . . . . . . . . . . . . . . . . . . . Cobbler 1 | . . 1 . . . . . . . . . . . . . . . . . . . . . . . . Subdweller 15 | . . 12 . . 3 . . . . . . . . . . . . . . . . . . . . . Decomposer 3 | . . . . . . . . . . . . 3 . . . . . . . . . . . . . . Packrat 2 | . . . . . . . . . . . . . 1 . . . . 1 . . . . . . . . Samaritan 2 | . . . . . . . . . . . . 2 . . . . . . . . . . . . . . Thug 1 | . . . . . . . 1 . . . . . . . . . . . . . . . . . . . Best Kill Streak 13 | 1 3 3 8 4 3 6 2 1 1 2 . 4 4 1 4 5 1 2 . 4 4 3 5 3 13 13 Combat Bots Only 12 | . 2 3 6 3 3 5 2 . 1 2 . 4 4 1 4 3 1 2 . 4 4 3 5 3 10 12 Max Kills in Single Turn 5 | 1 1 1 1 2 1 2 1 1 1 1 . 1 2 1 1 5 1 1 . 2 2 1 2 1 3 3 Gunslinging . | . . . . . . . . . . . . . . . . . . . . . . . . . . . Exploded 2 | . . . . . . . . . . . . . 2 . . 1 . . . 2 . . 2 . . . Melee . | . . . . . . . . . . . . . . . . . . . . . . . . . . . Uniques/NPCs Destroyed 1 | . . . . . . . . . . . . . . . . . . . . . . . . 1 . . DW-4LL (-2/Quarantine) Combat | -11 -10 -10 -8 -8 -8 -6 -6 -6 -6 -6 -5 -5 -5 -5 -4 -4 -4 -4 -4 -3 -3 -3 -2 -2 -2 -1 -------- Run | Yrd Mat Sub Mat Sto Rec Fac Ext Cet Arc Hub Fac Upp Upp War Pro Fac Upp Upp Zhi Pro Res Tes Res Qua Frg Acc Hostile Shots Fired 1683 | . 8 69 121 94 15 261 131 17 9 32 . 41 74 2 48 41 . 16 . 21 18 27 25 110 253 250 Missed 522 | . 2 30 28 27 4 93 52 5 5 14 . 10 25 1 20 12 . 5 . 7 3 5 3 20 63 88 Hits 1161 | . 6 39 93 67 11 168 79 12 4 18 . 31 49 1 28 29 . 11 . 14 15 22 22 90 190 162 Melee 13 | . . . . 2 . 2 . . . . . . . . . . . . . . . . 1 . 8 . Projectile 1148 | . 6 39 93 65 11 166 79 12 4 18 . 31 49 1 28 29 . 11 . 14 15 22 21 90 182 162 AOE 51 | . . . . . 1 . 1 . . . . . . 3 . . . . . . 1 . . 5 17 23 Critical Strikes 60 | . 1 2 8 3 1 6 1 . . 1 . . 3 . 4 2 . 1 . . . . 2 6 18 1 Actively Blocked 9 | . . . . . . . . . . . . . . . . . . . . . . . . 2 7 . Damage Taken 16947 | . 94 786 1096 791 237 2447 817 204 99 294 . 384 680 65 288 315 . 114 . 185 312 378 280 1443 3720 1918 Core 1331 | . 31 109 72 49 21 219 88 29 . 30 . 30 62 . 32 13 . . . 11 . 24 . 157 249 105 Absorbed by Shields 8583 | . . . 407 233 . . 178 149 . . . 209 177 61 244 260 . 119 . 169 320 226 213 1148 2769 1701 Reduced by Siege Mode 457 | . . . . . . . . . . . . 29 35 . 14 . . 3 . . . 7 4 18 347 . Redirected to Core 122 | . . . . . . . . . . . . . . . . . . . . . . . . 122 . . Ignored by Resistances 93 | . . . . 13 20 60 . . . . . . . . . . . . . . . . . . . . Regen/Repaired (Parts) 2944 | . . . . 532 . . 366 . . . . . 198 84 . 33 . . 36 47 91 . 338 371 492 356 Core Remaining (%) 80 | 100 . 44 . . 74 . . . . 56 . . . . 87 . . . . 97 . 98 . . 72 93 Volleys Fired 1071 | 8 15 55 113 111 20 114 49 14 21 31 . 46 28 5 26 45 8 9 . 22 27 17 26 54 130 77 Largest 4 | 2 2 2 4 2 1 4 4 3 4 4 . 4 4 4 4 4 4 4 . 4 4 4 2 4 4 3 Hottest 293 | 60 46 46 92 50 50 126 159 120 144 148 . 155 163 163 163 163 163 163 . 163 175 184 103 200 293 293 Shots Fired 2743 | 14 30 110 352 200 20 336 196 42 38 89 . 82 88 16 86 99 17 30 . 32 86 54 30 152 351 193 Gun 1180 | 14 30 110 352 199 . 176 45 5 20 28 . 46 26 4 26 45 8 9 . 20 17 . . . . . Cannon 1551 | . . . . . 20 160 151 37 18 61 . 36 60 12 60 54 9 21 . 8 69 53 28 150 351 193 Launcher 10 | . . . . 1 . . . . . . . . 2 . . . . . . 4 . 1 2 . . . Special 2 | . . . . . . . . . . . . . . . . . . . . . . . . 2 . . Kinetic 2279 | 8 30 110 352 199 20 336 196 37 18 61 . 36 60 12 60 54 9 21 . 8 81 40 8 98 280 145 Thermal 447 | 6 . . . . . . . 5 20 28 . 46 26 4 26 45 8 9 . 20 5 12 16 52 71 48 Explosive 10 | . . . . 1 . . . . . . . . 2 . . . . . . 4 . 1 2 . . . Electromagnetic 5 | . . . . . . . . . . . . . . . . . . . . . . 1 4 . . . Robot Hit Streak 42 | 4 4 10 34 36 6 27 21 11 4 12 . 19 10 2 15 9 11 13 . 9 10 13 11 22 42 29 Robot Miss Streak 7 | 1 5 2 5 4 1 6 6 4 4 4 . 2 7 3 2 4 2 2 . 1 4 3 . 3 4 2 Penetration Max 2 | . . . . . . 1 . . . . . . . . 1 . . . . . 1 . . . 2 2 Secondary Targets 9 | . 1 . 7 1 . . . . . . . . . . . . . . . . . . . . . . Max Gunslinging Chain 1 | . 1 . 1 1 . . . . . . . . . . . . . . . . . . . . . . Shots Hit Robots 1677 | 11 16 83 235 131 15 240 118 25 23 52 . 51 43 3 50 34 10 17 3 17 52 28 10 86 218 106 Core Hits 839 | 4 9 31 90 57 6 125 84 12 10 31 . 24 34 3 27 24 3 10 . 14 24 12 10 31 103 61 Critical Kills 31 | . . 2 . 1 . . 1 . . . . . . . . . . . . 1 4 7 1 1 11 2 Critical Parts Destroyed 37 | . . . 2 . . . . . . . . . . . . . . . . 2 9 4 1 6 11 2 Critical Strikes 142 | . . 2 2 1 3 4 6 2 . 1 . 2 2 1 9 5 1 1 . 6 26 12 3 14 33 6 Destroy 80 | . . 2 2 1 . . 1 . . . . . . . . . . . . 4 15 11 2 9 27 6 Blast 61 | . . . . . 3 3 5 2 . 1 . 2 2 1 9 5 1 1 . 2 11 1 1 5 6 . Sever 1 | . . . . . . 1 . . . . . . . . . . . . . . . . . . . . Melee Attacks 65 | . . 11 1 10 . 26 2 . 1 . . . . . . . . . 3 . . 10 . 1 . . Kinetic 1 | . . . . . . . . . . . . . . . . . . . . . . . . 1 . . Impact . | . . . . . . . . . . . . . . . . . . . . . . . . . . . Slashing 59 | . . 11 1 9 . 26 2 . . . . . . . . . . . . . . 10 . . . . Piercing . | . . . . . . . . . . . . . . . . . . . . . . . . . . . Sneak Attacks 23 | . . 3 . 1 . 13 2 . 1 . . . . . . . . . 3 . . . . . . . Combat Hostiles . | . . . . . . . . . . . . . . . . . . . . . . . . . . . Follow-up Attacks . | . . . . . . . . . . . . . . . . . . . . . . . . . . . Damage Inflicted 63322 | 131 186 1355 3744 2359 937 6234 3775 836 564 1944 . 1287 1438 149 1471 1825 315 609 . 848 1611 777 1026 3205 15976 10720 Guns 12875 | 131 186 1203 3744 2359 . 1895 551 62 211 449 . 525 254 24 310 172 144 93 . 407 155 . . . . . Cannons 46677 | . . . . . 937 3070 3066 774 353 1193 . 762 892 125 1161 1304 171 516 . 106 1456 664 282 3205 15976 10664 Explosions 2191 | . . . . . . . . . . 302 . . 292 . . 349 . . . 335 . 113 744 . . 56 Melee 1579 | . . 152 . . . 1269 158 . . . . . . . . . . . . . . . . . . . Ramming . | . . . . . . . . . . . . . . . . . . . . . . . . . . . Kinetic 51109 | 87 186 1203 3744 2359 937 4965 3617 774 353 1193 . 762 892 125 1161 1304 171 516 . 106 1587 580 150 2081 14346 7910 Thermal 8660 | 44 . . . . . . . 62 211 449 . 525 254 24 310 521 144 93 . 407 24 84 . 1124 1630 2754 Explosive 1540 | . . . . . . . . . . . . . 292 . . . . . . 335 . 113 744 . . 56 Electromagnetic 434 | . . . . . . . . . . 302 . . . . . . . . . . . . 132 . . . Impact . | . . . . . . . . . . . . . . . . . . . . . . . . . . . Slashing 1579 | . . 152 . . . 1269 158 . . . . . . . . . . . . . . . . . . . Piercing . | . . . . . . . . . . . . . . . . . . . . . . . . . . . Highest Corruption 12 | . . . . . . 2 2 2 2 6 . . . . . 1 1 2 2 2 . 4 . 10 12 1 Average Corruption 2 | . . . . . . 1 1 2 1 6 . . . . . 1 1 1 2 2 . 2 . 3 9 1 Corruption Purged 24 | . . . . . . . 2 . 2 . . . . . . . 1 . . . . . . 19 . . Corruption Blocked . | . . . . . . . . . . . . . . . . . . . . . . . . . . . Effects 104 | . . . . . . 13 1 5 1 . . . . . . 1 1 20 5 14 . 9 . 14 19 1 Message Errors 27 | . . . . . . 3 . . 1 . . . . . . 1 1 8 . 3 . 3 . 3 3 1 Matter Fused 21 | . . . . . . 4 . 1 . . . . . . . . . 3 1 4 . . . 2 6 . Heat Flow Errors 15 | . . . . . . 1 1 3 . . . . . . . . . 4 . 3 . 1 . 1 1 . Energy Discharges 10 | . . . . . . 2 . 1 . . . . . . . . . 5 . . . . . 1 1 . Data Loss (minor) 12 | . . . . . . . . . . . . . . . . . . . 2 2 . 2 . 4 2 . Data Loss (major) 4 | . . . . . . 1 . . . . . . . . . . . . . . . . . 2 1 . Misfires 8 | . . . . . . 2 . . . . . . . . . . . . . 2 . 3 . . 1 . Alerts 4 | . . . . . . . . . . . . . . . . . . . 2 . . . . . 2 . Weapon Failures 3 | . . . . . . . . . . . . . . . . . . . . . . . . 1 2 . Overload Shots 3 | . . . . . . . . . . . . . . 1 . . . . . 2 . . . . . . Overflow Damage 2914 | . . 82 . . 70 537 22 . . 78 . 18 48 . 25 50 . . . 42 1 8 123 127 1243 440 Projectiles 2280 | . . . . . 70 255 22 . . 42 . 18 23 . 25 6 . . . . 1 8 . 127 1243 440 Explosions 270 | . . . . . . . . . . 36 . . 25 . . 44 . . . 42 . . 123 . . . Melee 364 | . . 82 . . . 282 . . . . . . . . . . . . . . . . . . . . Knockbacks 216 | . . . . . 2 35 20 . . 11 . 6 14 . 5 10 1 . . . 8 3 . 14 65 22 Impact . | . . . . . . . . . . . . . . . . . . . . . . . . . . . Kinetic 201 | . . . . . 2 34 19 . . 11 . 6 14 . 5 5 1 . . . 5 3 . 14 60 22 Secondary 15 | . . . . . . 1 1 . . . . . . . . 5 . . . . 3 . . . 5 . Self-Inflicted Damage 206 | . . . . . . . . . . 89 . . . . . . . . . 62 . 55 . . . . Shots 3 | . . . . . . . . . . 1 . . . . . . . . . 1 . 1 . . . . Rammed . | . . . . . . . . . . . . . . . . . . . . . . . . . . . Targets Rammed . | . . . . . . . . . . . . . . . . . . . . . . . . . . . Kicked . | . . . . . . . . . . . . . . . . . . . . . . . . . . . Crushed . | . . . . . . . . . . . . . . . . . . . . . . . . . . . Highest Temperature 365 | . 27 239 104 . . 248 179 155 2 39 . 190 365 78 219 236 261 260 . 251 198 135 10 272 192 200 Average Temperature 60 | . 10 136 29 . . 31 29 74 2 36 . 51 116 33 73 62 127 78 . 103 48 47 10 72 61 68 Received Heat Transfer 2830 | . 72 360 557 281 48 519 219 . 9 72 . 132 189 . 39 4 . 10 . . 45 29 . 12 160 73 Effects 2 | . . . . . . . . . . . . . 2 . . . . . . . . . . . . . Shutdowns 1 | . . . . . . . . . . . . . 1 . . . . . . . . . . . . . Interference 1 | . . . . . . . . . . . . . 1 . . . . . . . . . . . . . Siege Activations 36 | . . . . . . . . . . . . 1 1 1 4 . 1 2 . 1 1 3 1 5 15 . Total Turns 511 | . . . . . . . . . . . . 26 32 41 82 . 6 12 . 4 14 44 12 59 179 . Longest Duration 41 | . . . . . . . . . . . . 26 32 41 31 . 6 10 . 4 14 23 12 20 37 . Martial Activations . | . . . . . . . . . . . . . . . . . . . . . . . . . . . Shielding Activations . | . . . . . . . . . . . . . . . . . . . . . . . . . . . Robots Disrupted . | . . . . . . . . . . . . . . . . . . . . . . . . . . . Combat Hostiles . | . . . . . . . . . . . . . . . . . . . . . . . . . . . Robots Corrupted 3 | . . . . . . . . . . 1 . . . . . . . . . . . . 1 . 1 . Combat Hostiles 2 | . . . . . . . . . . . . . . . . . . . . . . . 1 . 1 . Parts Fried 4 | . . . . . 1 . . . . 2 . . . . . . . . . . . . 1 . . . Impact Corruptions 4 | . . . . . . . . . . . . . . . . . . . . . . . . . 4 . Robots Melted 1 | . . . . . . . . . . . . 1 . . . . . . . . . . . . . . Combat Hostiles 1 | . . . . . . . . . . . . 1 . . . . . . . . . . . . . . Parts Melted 8 | . . 1 . . . . 1 . . . . 2 . . 1 1 . . . . . . . 1 . 1 Heat Transferred 7429 | 100 . . . . . . . 111 333 666 . 851 407 37 444 472 222 148 . 555 37 74 . 598 1124 1250 Parts Sabotaged 3 | . . . . . . . . . . . . . . . . . . . . . . . 3 . . . Parts Stolen . | . . . . . . . . . . . . . . . . . . . . . . . . . . . Parts Stripped 18 | . . . . . . . . . . . . . . . . . . . . . . . . 18 . . Power Chain Reactions . | . . . . . . . . . . . . . . . . . . . . . . . . . . . Alert | -11 -10 -10 -8 -8 -8 -6 -6 -6 -6 -6 -5 -5 -5 -5 -4 -4 -4 -4 -4 -3 -3 -3 -2 -2 -2 -1 ------- Run | Yrd Mat Sub Mat Sto Rec Fac Ext Cet Arc Hub Fac Upp Upp War Pro Fac Upp Upp Zhi Pro Res Tes Res Qua Frg Acc Maximum Alert Level 5 | . . . 1 1 . 2 4 3 2 3 1 . . . . 1 . . . . 1 . 2 1 4 5 Low Security (%) 44 | 100 100 . 10 53 100 31 33 . . 32 . . . . . 97 . . . . 81 100 16 29 8 . Level 1 36 | . . . 89 46 . 57 17 . 71 12 100 . . . . 2 . . . . 18 . 44 70 54 . Level 2 7 | . . . . . . 11 12 . 28 52 . . . . . . . . . . . . 38 . 6 . Level 3 5 | . . . . . . . 22 100 . 2 . . . . . . . . . . . . . . 5 18 Level 4 4 | . . . . . . . 13 . . . . . . . . . . . . . . . . . 24 35 Level 5 1 | . . . . . . . . . . . . . . . . . . . . . . . . . . 45 High Security . | . . . . . . . . . . . . . . . . . . . . . . . . . . . Max Security . | . . . . . . . . . . . . . . . . . . . . . . . . . . . Peak Influence 2154 | 5 50 . 388 332 97 562 1359 863 491 705 315 . . . . 207 . . . . 300 159 487 280 1366 2154 Initial 814 | . . . . 119 71 300 147 754 327 79 315 . . . . 16 . . . . 300 57 81 170 126 814 Average 315 | 1 7 . 287 198 14 248 545 784 341 342 280 . . . . 107 . . . . 142 28 340 213 561 1537 Influence Increases 15163 | 15 78 105 916 816 312 1435 2331 299 230 1124 . 125 280 185 333 546 20 95 . 160 684 370 484 556 1822 1842 Destroy 0b10 Robot/C 7320 | . 40 60 600 420 60 660 1140 160 80 420 . 100 260 140 280 180 20 80 . 100 200 120 140 240 980 840 Destroy 0b10 Robot/NC 595 | 15 15 . 55 65 5 85 60 10 10 60 . . . . . 50 . 5 . 25 10 10 . 20 30 65 Destroy Leader 1272 | . 14 . 152 134 . 180 126 . . 128 . 10 20 . 40 44 . 10 . 20 54 14 20 56 92 158 Allied During Kill 1456 | . . . . . . 15 932 102 90 259 . . . 45 13 . . . . . . . . . . . Successful Hack 510 | . 9 . 60 36 48 23 24 9 . 29 . . . . . 73 . . . . 24 74 . 12 24 65 Select Force Hacks 180 | . . . . . 180 . . . . . . . . . . . . . . . . . . . . . Disable Machine 870 | . . . 45 45 15 30 15 . 45 75 . . . . . 75 . . . . 30 45 15 135 135 165 Anti-Garrison Action 350 | . . . . . . . . . . . . . . . . . . . . . . . 150 . 200 . Destroy Structure 1650 | . . . 4 26 4 37 19 18 5 138 . . . . . 124 . . . . 36 92 159 93 346 549 Advance Influence 600 | . . . . . . 300 . . . . . . . . . . . . . . 300 . . . . . Partial Spotted 15 | . . . . . . . . . . . . . . . . . . . . . 15 . . . . . Lose Combat Pursuer 345 | . . 45 . 90 . 105 15 . . 15 . 15 . . . . . . . 15 15 15 . . 15 . Influence Decreases 13015 | 15 78 105 632 916 496 1134 1284 828 822 707 399 335 244 157 406 388 204 95 . 160 582 328 325 633 690 1052 Entered New Map 3229 | . . . . 165 113 . 154 594 492 148 329 92 8 71 99 10 69 . . . . 45 63 133 100 544 Time Decay 8311 | 15 78 105 612 721 368 644 620 214 310 469 70 243 216 66 287 358 135 95 . 160 562 283 262 470 550 398 Search Patrol Dispatched 100 | . . . . . . 100 . . . . . . . . . . . . . . . . . . . . Lost Part 270 | . . . 20 30 . 70 10 . . 10 . . 20 . . 10 . . . . . . . 30 40 30 Lost Ally 805 | . . . . . 15 20 500 20 20 80 . . . 20 20 10 . . . . 20 . . . . 80 Purge Threat 300 | . . . . . . 300 . . . . . . . . . . . . . . . . . . . . Squads Dispatched 67 | . 1 . 5 3 . 10 9 . . 6 . . . . . 2 . . . . 4 4 . 5 6 12 Investigation 9 | . 1 . . . . 2 2 . . . . . . . . . . . . . 3 . . . 1 . Extermination 20 | . . . . . . 4 . . . 2 . . . . . 1 . . . . . 2 . 5 4 2 Reinforcement 22 | . . . 2 3 . 4 4 . . 3 . . . . . 1 . . . . 1 2 . . . 2 Assault 6 | . . . . . . . 3 . . . . . . . . . . . . . . . . . 1 2 Garrison 10 | . . . 3 . . . . . . 1 . . . . . . . . . . . . . . . 6 Intercept . | . . . . . . . . . . . . . . . . . . . . . . . . . . . Searches Triggered 1 | . . . . . . 1 . . . . . . . . . . . . . . . . . . . . Unchained Authorized 2 | . . . . . . . . . . . 1 . . . . . . . . . . . . 1 . . Construction Impeded 5 | . . . . 1 . 1 2 . . 1 . . . . . . . . . . . . . . . . Haulers Reinforced 1 | . . . . . . . . . . . . . . . . . . . . . . 1 . . . . Active Scanning Responses . | . . . . . . . . . . . . . . . . . . . . . . . . . . . Cargo Convoy Interrupts . | . . . . . . . . . . . . . . . . . . . . . . . . . . . Stealth | -11 -10 -10 -8 -8 -8 -6 -6 -6 -6 -6 -5 -5 -5 -5 -4 -4 -4 -4 -4 -3 -3 -3 -2 -2 -2 -1 --------- Run | Yrd Mat Sub Mat Sto Rec Fac Ext Cet Arc Hub Fac Upp Upp War Pro Fac Upp Upp Zhi Pro Res Tes Res Qua Frg Acc Distress Signals 31 | . 1 . 1 2 1 2 3 2 . 4 . . . . . 2 . . . 2 3 . 4 . . 4 Communications Jammed 7 | . . . . . . . . . . . . . . . . . . . . . . . . . 4 3 Distress Signals 3 | . . . . . . . . . . . . . . . . . . . . . . . . . 1 2 Times Spotted 462 | . 4 17 42 34 12 45 51 9 11 24 . 9 11 12 12 13 1 4 . 5 17 8 4 18 50 49 Peak Tracking Total 14 | . 2 2 5 5 4 5 6 5 1 5 . 5 4 8 4 4 . 2 . 4 4 3 3 3 12 14 Tactical Retreats 18 | . . 2 . 4 . 5 1 . . 1 . 1 . . . . . . . 1 1 1 . . 1 . Traps | -11 -10 -10 -8 -8 -8 -6 -6 -6 -6 -6 -5 -5 -5 -5 -4 -4 -4 -4 -4 -3 -3 -3 -2 -2 -2 -1 ------- Run | Yrd Mat Sub Mat Sto Rec Fac Ext Cet Arc Hub Fac Upp Upp War Pro Fac Upp Upp Zhi Pro Res Tes Res Qua Frg Acc Traps Triggered 17 | . 1 2 . 1 . 1 3 . . . . . . . . . . . . . 4 1 . 1 1 2 Indirectly . | . . . . . . . . . . . . . . . . . . . . . . . . . . . Trap Hack Attempts . | . . . . . . . . . . . . . . . . . . . . . . . . . . . Triggered . | . . . . . . . . . . . . . . . . . . . . . . . . . . . Disarmed 6 | . . . . 6 . . . . . . . . . . . . . . . . . . . . . . Reprogrammed . | . . . . . . . . . . . . . . . . . . . . . . . . . . . Reused . | . . . . . . . . . . . . . . . . . . . . . . . . . . . Traps Extracted . | . . . . . . . . . . . . . . . . . . . . . . . . . . . Installed . | . . . . . . . . . . . . . . . . . . . . . . . . . . . Triggered . | . . . . . . . . . . . . . . . . . . . . . . . . . . . Machines | -11 -10 -10 -8 -8 -8 -6 -6 -6 -6 -6 -5 -5 -5 -5 -4 -4 -4 -4 -4 -3 -3 -3 -2 -2 -2 -1 ---------- Run | Yrd Mat Sub Mat Sto Rec Fac Ext Cet Arc Hub Fac Upp Upp War Pro Fac Upp Upp Zhi Pro Res Tes Res Qua Frg Acc Machines Disabled 69 | . . 1 3 3 1 2 3 . 3 5 . . 1 1 . 5 . . . . 2 3 2 9 14 11 Max in Single Turn 4 | . . 1 1 1 1 1 1 . 1 4 . . 1 1 . 4 . . . . 1 1 1 1 2 1 Garrison Access 10 | . . . . 1 . 1 . . . . . . . . . 1 . . . . 2 . 3 . 1 1 Network Hub 3 | . . . . . . . . . . 3 . . . . . . . . . . . . . . . . Machines Repaired . | . . . . . . . . . . . . . . . . . . . . . . . . . . . Machines Dismantled . | . . . . . . . . . . . . . . . . . . . . . . . . . . . Machines Sabotaged . | . . . . . . . . . . . . . . . . . . . . . . . . . . . Overloaded Fab Kills . | . . . . . . . . . . . . . . . . . . . . . . . . . . . Hacking | -11 -10 -10 -8 -8 -8 -6 -6 -6 -6 -6 -5 -5 -5 -5 -4 -4 -4 -4 -4 -3 -3 -3 -2 -2 -2 -1 --------- Run | Yrd Mat Sub Mat Sto Rec Fac Ext Cet Arc Hub Fac Upp Upp War Pro Fac Upp Upp Zhi Pro Res Tes Res Qua Frg Acc Machines Accessed 117 | . 3 1 13 13 14 8 8 1 . 3 1 1 1 7 . 9 1 . 5 . 4 8 1 5 3 7 Terminals 65 | . 3 . 8 9 6 4 8 1 . 2 1 . 1 . . 7 . . . . 1 5 . 4 1 4 Fabricators 2 | . . . . . . . . . . . . . . . . . . . . . . 2 . . . . Repair Stations 1 | . . . . 1 . . . . . . . . . . . . . . . . . . . . . . Recycling Units 12 | . . . 2 2 6 2 . . . . . . . . . . . . . . . . . . . . Scanalyzers 8 | . . . 2 . . 1 . . . . . . . . . 1 . . . . 1 1 . 1 1 . Garrison Access 12 | . . . 1 1 . 1 . . . 1 . . . . . 1 . . . . 2 . 1 . 1 3 Total Hacks 389 | . 11 9 39 48 67 25 15 1 . 7 3 1 3 8 . 53 1 . 18 . 12 22 2 14 6 24 Successful 213 | . 3 9 21 37 47 9 6 1 . 3 . 1 3 8 . 21 1 . 18 . 3 9 . 6 3 4 Failed 173 | . 8 . 17 11 20 15 9 . . 4 3 . . . . 32 . . . . 8 13 2 8 3 20 Catastrophic 47 | . 1 . 3 1 4 5 3 . . 1 1 . . . . 10 . . . . 1 5 1 2 2 7 Database Lockouts 3 | . . . 1 . . 1 . . . . . . . . . . . . . . 1 . . . . . Manual 124 | . 7 . 13 14 30 7 1 1 . 2 3 . . . . 23 . . . . . 7 2 5 3 6 Terminals 230 | . 11 . 26 31 30 17 15 1 . 5 3 . 3 . . 42 . . . . 1 17 . 13 1 14 Fabricators 2 | . . . . . . . . . . . . . . . . . . . . . . 2 . . . . Repair Stations 9 | . . . . 9 . . . . . . . . . . . . . . . . . . . . . . Recycling Units 31 | . . . 5 6 15 5 . . . . . . . . . . . . . . . . . . . . Scanalyzers 27 | . . . 7 . . 2 . . . . . . . . . 7 . . . . 5 3 . 1 2 . Garrison Access 31 | . . . 1 2 . 1 . . . 2 . . . . . 4 . . . . 6 . 2 . 3 10 Terminal Hacks 143 | . 2 9 9 17 35 5 6 1 . 3 . 1 3 8 . 11 1 . 18 . . 4 . 6 1 3 Record 43 | . . 8 . . 20 . . . . . . . 3 6 . . . . 6 . . . . . . . Part Schematic 4 | . . . . . . . . . . . . . . . . . . . 4 . . . . . . . Robot Analysis 22 | . 1 . 1 2 10 . 1 . . . . . . . . 3 . . 4 . . . . . . . Prototype ID Bank 17 | . . . 3 1 2 1 . . . 1 . . . . . 3 . . 4 . . 1 . 1 . . Open Door 11 | . . . . 3 . . 3 1 . . . 1 . 2 . . 1 . . . . . . . . . Level Access Points 2 | . . . . . . . . . . . . . . . . . . . . . . . . 1 . 1 Branch Access Points 4 | . . . 1 1 . 1 . . . . . . . . . 1 . . . . . . . . . . Machine Index 1 | . . . . . . . . . . . . . . . . . . . . . . . . 1 . . Terminal Index 2 | . . . . 1 . . . . . . . . . . . . . . . . . . . . . 1 Fabricator Index 1 | . . . . 1 . . . . . . . . . . . . . . . . . . . . . . Alert Level 4 | . . . 1 1 . 1 . . . 1 . . . . . . . . . . . . . . . . Unreport Threat 2 | . . . . . . 2 . . . . . . . . . . . . . . . . . . . . Locate Traps 13 | . 1 . 2 2 . . 2 . . . . . . . . 2 . . . . . 1 . 2 . 1 Disarm Traps 1 | . . . . 1 . . . . . . . . . . . . . . . . . . . . . . Recall Reinforcements 1 | . . . . . . . . . . . . . . . . 1 . . . . . . . . . . Hauler Manifests 3 | . . . 1 1 . . . . . . . . . . . . . . . . . . . 1 . . Registered Components 1 | . . . . 1 . . . . . . . . . . . . . . . . . . . . . . Registered Prototypes 1 | . . . . 1 . . . . . . . . . . . . . . . . . . . . . . Zone Layout 6 | . . . . 1 1 . . . . 1 . . . . . 1 . . . . . 2 . . . . Proto ID Catalog 2 | . . 1 . . . . . . . . . . . . . . . . . . . . . . 1 . Release Object 2 | . . . . . 2 . . . . . . . . . . . . . . . . . . . . . Fabricator Hacks . | . . . . . . . . . . . . . . . . . . . . . . . . . . . Repair Station Hacks 9 | . . . . 9 . . . . . . . . . . . . . . . . . . . . . . Scan Component 5 | . . . . 5 . . . . . . . . . . . . . . . . . . . . . . Repair 4 | . . . . 4 . . . . . . . . . . . . . . . . . . . . . . Recycling Unit Hacks 8 | . . . 1 1 5 1 . . . . . . . . . . . . . . . . . . . . Retrieve Components 8 | . . . 1 1 5 1 . . . . . . . . . . . . . . . . . . . . Scanalyzer 19 | . . . 6 . . 1 . . . . . . . . . 6 . . . . 2 3 . . 1 . Insert Component 2 | . . . 1 . . . . . . . . . . . . . . . . . . 1 . . . . Retrieve Study 17 | . . . 5 . . 1 . . . . . . . . . 6 . . . . 2 2 . . 1 . Garrison Access Hacks 5 | . . . . 1 . 1 . . . . . . . . . 1 . . . . 1 . . . . 1 Seal Access 5 | . . . . 1 . 1 . . . . . . . . . 1 . . . . 1 . . . . 1 Unauthorized Hacks 29 | . 1 . 5 9 7 1 . . . . . . . . . 3 . . . . . 2 . . 1 . Terminals 14 | . 1 . 3 4 1 . . . . . . . . . . 3 . . . . . 2 . . . . Assimilate 2 | . . . . 1 . . . . . . . . . . . 1 . . . . . . . . . . Botnet 10 | . 1 . 3 2 1 . . . . . . . . . . 2 . . . . . 1 . . . . Operators 2 | . . . . 1 . . . . . . . . . . . . . . . . . 1 . . . . Fabricators . | . . . . . . . . . . . . . . . . . . . . . . . . . . . Repair Stations . | . . . . . . . . . . . . . . . . . . . . . . . . . . . Recycling Units 14 | . . . 2 5 6 1 . . . . . . . . . . . . . . . . . . . . Reject 2 | . . . . 2 . . . . . . . . . . . . . . . . . . . . . . Recyclers 1 | . . . . 1 . . . . . . . . . . . . . . . . . . . . . . Mask 5 | . . . 2 2 . 1 . . . . . . . . . . . . . . . . . . . . Tunnel 6 | . . . . . 6 . . . . . . . . . . . . . . . . . . . . . Scanalyzers . | . . . . . . . . . . . . . . . . . . . . . . . . . . . Garrison Access 1 | . . . . . . . . . . . . . . . . . . . . . . . . . 1 . Jam 1 | . . . . . . . . . . . . . . . . . . . . . . . . . 1 . Data Cores Recovered 1 | . . . . . . . . . . . . . . . . . . . . . . . . 1 . . Used 1 | . . . . . . . . . . . . . . . . . . . . . . . . 1 . . Hacking Detections 73 | . 3 . 13 9 8 5 6 . . 3 1 . . . . 7 . . . . 2 7 1 3 1 4 Full Trace Events 3 | . . . . . . 2 1 . . . . . . . . . . . . . . . . . . . Feedback Events . | . . . . . . . . . . . . . . . . . . . . . . . . . . . Feedback Blocked . | . . . . . . . . . . . . . . . . . . . . . . . . . . . Robot Schematics Acquired 6 | . . . . . . . . . . . . . . . . . . . . . . 3 . . 3 . Robots Built . | . . . . . . . . . . . . . . . . . . . . . . . . . . . Authchips . | . . . . . . . . . . . . . . . . . . . . . . . . . . . Time . | . . . . . . . . . . . . . . . . . . . . . . . . . . . Total Robot Build Rating . | . . . . . . . . . . . . . . . . . . . . . . . . . . . Part Schematics Acquired 15 | . . . . . . . . . . . . . . . . . . . 4 . . 3 . . 8 . Parts Built . | . . . . . . . . . . . . . . . . . . . . . . . . . . . Authchips . | . . . . . . . . . . . . . . . . . . . . . . . . . . . Time . | . . . . . . . . . . . . . . . . . . . . . . . . . . . Total Part Build Rating . | . . . . . . . . . . . . . . . . . . . . . . . . . . . Part Studies Acquired 16 | . . . 5 . . 1 . . . . . . . . . 5 . . . . 2 2 . . 1 . Parts Repaired 4 | . . . . 4 . . . . . . . . . . . . . . . . . . . . . . Time 152 | . . . . 152 . . . . . . . . . . . . . . . . . . . . . . Parts Recycled . | . . . . . . . . . . . . . . . . . . . . . . . . . . . Recycled Matter . | . . . . . . . . . . . . . . . . . . . . . . . . . . . Retrieved Matter . | . . . . . . . . . . . . . . . . . . . . . . . . . . . Retrieved Components 54 | . . . 9 3 39 3 . . . . . . . . . . . . . . . . . . . . Parts Scanalyzed . | . . . . . . . . . . . . . . . . . . . . . . . . . . . Part Schematics Acquired . | . . . . . . . . . . . . . . . . . . . . . . . . . . . Parts Damaged . | . . . . . . . . . . . . . . . . . . . . . . . . . . . Bothacking | -11 -10 -10 -8 -8 -8 -6 -6 -6 -6 -6 -5 -5 -5 -5 -4 -4 -4 -4 -4 -3 -3 -3 -2 -2 -2 -1 ------------ Run | Yrd Mat Sub Mat Sto Rec Fac Ext Cet Arc Hub Fac Upp Upp War Pro Fac Upp Upp Zhi Pro Res Tes Res Qua Frg Acc Used RIF Installer . | . . . . . . . . . . . . . . . . . . . . . . . . . . . Robots Hacked 5 | . . . . 1 . . . . 1 . . . . . . . . . 3 . . . . . . . Non-combat . | . . . . . . . . . . . . . . . . . . . . . . . . . . . Combat 5 | . . . . 1 . . . . 1 . . . . . . . . . 3 . . . . . . . Robot Hacks Applied 5 | . . . . 1 . . . . 1 . . . . . . . . . 3 . . . . . . . parse_system 5 | . . . . 1 . . . . 1 . . . . . . . . . 3 . . . . . . . Relay Couplers Released 13 | . . . . . . . . . . . . . . . . 1 . . . . 2 . 7 . . 3 Machine Destruction 10 | . . . . . . . . . . . . . . . . 1 . . . . 2 . 7 . . . Programmers 3 | . . . . . . . . . . . . . . . . . . . . . . . . . . 3 Fabnet Peak Effective % . | . . . . . . . . . . . . . . . . . . . . . . . . . . . Robots Rewired 36 | . . . . . 5 . 26 . . . . . . 5 . . . . . . . . . . . . Allies Hacked 2 | . . . . . . 1 . . . . . . . . . 1 . . . . . . . . . . Hacks Repelled . | . . . . . . . . . . . . . . . . . . . . . . . . . . . Allies | -11 -10 -10 -8 -8 -8 -6 -6 -6 -6 -6 -5 -5 -5 -5 -4 -4 -4 -4 -4 -3 -3 -3 -2 -2 -2 -1 -------- Run | Yrd Mat Sub Mat Sto Rec Fac Ext Cet Arc Hub Fac Upp Upp War Pro Fac Upp Upp Zhi Pro Res Tes Res Qua Frg Acc Total Allies 45 | . . . . . 5 . 30 5 . . . . . 5 . . . . . . . . . . . . Largest Group 19 | . . . . . 5 2 19 7 6 4 . . . 5 2 1 . . . . . . . . . . Highest-Rated Group 681 | . . . . . 80 31 681 652 549 372 . . . 269 113 64 . . . . . . . . . . Highest-Rated Ally 159 | . . . . . 18 16 159 159 152 96 . . . 64 64 64 . . . . . . . . . . Total Orders 72 | . . . . . . . . . . 2 . . . 6 6 . . . . . 6 . 14 17 . 21 STAY 10 | . . . . . . . . . . 2 . . . 5 3 . . . . . . . . . . . FOLLOW 5 | . . . . . . . . . . . . . . 1 3 . . . . . . . . . . 1 EXPLORE 37 | . . . . . . . . . . . . . . . . . . . . . 4 . 8 9 . 16 RETURN 20 | . . . . . . . . . . . . . . . . . . . . . 2 . 6 8 . 4 Ally Attacks 407 | . . . . . 11 16 245 36 20 52 . . . 21 6 . . . . . . . . . . . Total Damage 10344 | . . . . . 230 246 5290 1449 629 1638 . . . 695 167 . . . . . . . . . . . Kills 85 | . . . . . . 1 45 9 3 19 . . . 5 3 . . . . . . . . . . . Allies Corrupted 1 | . . . . . . . 1 . . . . . . . . . . . . . . . . . . . Allies Melted 1 | . . . . . . . . . . . . . . 1 . . . . . . . . . . . . Intel | -11 -10 -10 -8 -8 -8 -6 -6 -6 -6 -6 -5 -5 -5 -5 -4 -4 -4 -4 -4 -3 -3 -3 -2 -2 -2 -1 ------- Run | Yrd Mat Sub Mat Sto Rec Fac Ext Cet Arc Hub Fac Upp Upp War Pro Fac Upp Upp Zhi Pro Res Tes Res Qua Frg Acc Active Infowar (turns) 29204 | 58 444 1367 2221 202 264 479 25 . 511 1409 154 5026 1822 999 1741 773 2147 2072 103 842 1626 1139 541 1109 1593 537 Sensors 21244 | . . . . . . 463 25 . 511 1338 154 5012 1545 471 1739 665 2146 2067 103 842 1626 1067 517 612 . 341 Zeronet 529 | . . . . . . . . . . . . . . . . . . . . . . . . 497 32 . Terrain 4887 | . . 480 41 . . . . . . . . 2586 . . . . . . . . 102 960 71 . 647 . Structural 11517 | . . . . . 264 16 . . . 71 152 2221 1816 979 1728 604 2067 1599 . . . . . . . . Seismic 3771 | 58 444 887 2180 202 . . . . . . . . . . . . . . . . . . . . . . Jamming 3147 | . . . . . . . . . . . . . . . . . . . . . 12 1117 92 138 1592 196 Robot Analysis Total 22 | . 1 . 1 2 10 . 1 . . . . . . . . 3 . . 4 . . . . . . . Derelict Logs Recovered 9 | . . 1 . . . . . . . . . 1 2 . 1 . 2 2 . . . . . . . . Drone Launches 38 | . . . . . . . . . . . . . . . . . . . . . 4 . 8 10 . 16 Drone Recoveries 28 | . . . . . . . . . . . . . . . . . . . . . 2 . 8 10 . 8 Exploration | -11 -10 -10 -8 -8 -8 -6 -6 -6 -6 -6 -5 -5 -5 -5 -4 -4 -4 -4 -4 -3 -3 -3 -2 -2 -2 -1 ------------- Run | Yrd Mat Sub Mat Sto Rec Fac Ext Cet Arc Hub Fac Upp Upp War Pro Fac Upp Upp Zhi Pro Res Tes Res Qua Frg Acc Turns Passed 44010 | 165 444 4460 2417 3418 1960 2327 2098 449 696 1411 154 5265 1989 1360 1874 838 2152 2093 462 863 1666 1139 567 1199 1593 951 Spaces Moved 19349 | 103 255 2172 1006 1098 863 1226 713 158 144 692 62 1628 1016 637 1061 326 865 844 220 533 1072 595 298 574 721 467 Core 72 | 72 . . . . . . . . . . . . . . . . . . . . . . . . . . Treads 13257 | 1 . . . 530 226 . 587 158 144 692 62 1628 1016 637 1061 326 865 844 220 533 1072 595 298 574 721 467 Legs . | . . . . . . . . . . . . . . . . . . . . . . . . . . . Wheels 6020 | 30 255 2172 1006 568 637 1226 126 . . . . . . . . . . . . . . . . . . . Hover . | . . . . . . . . . . . . . . . . . . . . . . . . . . . Flight . | . . . . . . . . . . . . . . . . . . . . . . . . . . . Fastest Speed 50 | 50 95 175 146 180 135 120 180 155 155 155 240 160 160 160 160 160 160 240 134 134 134 138 138 138 116 116 Average Speed 173 | 111 136 175 171 247 211 145 230 173 155 155 240 160 160 160 160 201 239 240 148 138 136 138 149 147 128 145 Slowest Speed 280 | 160 175 175 190 280 280 195 241 238 155 240 240 160 160 160 160 240 240 240 240 205 138 138 220 224 138 161 Overloaded Moves . | . . . . . . . . . . . . . . . . . . . . . . . . . . . Propulsion Burnouts . | . . . . . . . . . . . . . . . . . . . . . . . . . . . Robots Hopped . | . . . . . . . . . . . . . . . . . . . . . . . . . . . Potential Cave-ins 23 | . . . . . . . . . . . . . . . . . . . . . 2 . 7 . 11 3 Cave-ins Triggered . | . . . . . . . . . . . . . . . . . . . . . . . . . . . Exploration Rate (%) 65 | 4 44 97 86 94 99 33 87 66 78 65 2 98 99 79 98 14 80 95 60 78 48 72 47 86 18 40 Regions Visited 26 Branch Regions 18 Pre-discovered Areas 14 | . . 1 . . 6 . . . . . . . 1 . 1 . . 2 3 . . . . . . . Known Exits Taken 21 | . . . 1 1 . 1 1 1 1 1 1 1 1 1 1 1 1 1 1 1 1 1 1 . 1 . Unknown Exits Taken 5 | 1 1 1 . . 1 . . . . . . . . . . . . . . . . . . 1 . . Scrap Searched 28 | . . 11 . . . . . . . . . 3 4 . 1 . 4 3 . 2 . . . . . . Spaces Dug 228 | . . . 1 7 1 4 . . . 3 . 8 1 . . 12 . . . 10 7 67 16 10 29 52 Terrain Destroyed 986 | . . . 1 21 4 29 9 4 3 172 . 12 36 . 28 64 5 8 . 44 23 79 63 33 112 236 Melee 21 | . . . 1 7 . 4 . . . . . . . . . . . . . . . 9 . . . . Projectile 564 | . . . . . 4 25 9 4 3 11 . 12 25 . 28 31 5 8 . 8 23 13 16 33 105 201 AOE 401 | . . . . 14 . . . . . 161 . . 11 . . 33 . . . 36 . 57 47 . 7 35 Terrain Rammed . | . . . . . . . . . . . . . . . . . . . . . . . . . . . Walls Destroyed . | . . . . . . . . . . . . . . . . . . . . . . . . . . . Machines Disabled . | . . . . . . . . . . . . . . . . . . . . . . . . . . . Actions | -11 -10 -10 -8 -8 -8 -6 -6 -6 -6 -6 -5 -5 -5 -5 -4 -4 -4 -4 -4 -3 -3 -3 -2 -2 -2 -1 --------- Run | Yrd Mat Sub Mat Sto Rec Fac Ext Cet Arc Hub Fac Upp Upp War Pro Fac Upp Upp Zhi Pro Res Tes Res Qua Frg Acc Total 27993 | 135 326 2731 1526 1668 980 1522 1052 304 589 968 68 4225 1318 972 1175 440 930 889 362 633 1233 854 387 830 1245 631 Wait 6094 | 5 23 438 309 385 21 92 57 105 410 230 . 2531 246 247 67 48 46 23 100 62 78 189 21 100 249 12 Move 19322 | 102 254 2171 1005 1097 862 1225 712 157 143 691 61 1627 1015 636 1060 325 864 843 219 532 1071 594 297 573 720 466 Hop . | . . . . . . . . . . . . . . . . . . . . . . . . . . . Pick Up 316 | 11 21 19 38 13 17 16 8 8 1 2 2 4 3 19 1 6 2 2 13 4 13 5 9 22 37 20 Fast Attach 78 | 4 1 . 2 7 2 5 3 1 5 1 1 . 2 2 . . 1 . 6 . 5 3 5 8 6 8 Attach 84 | 3 . 3 10 3 . 9 1 1 . 1 2 . 2 1 . 2 . 1 2 . 7 1 6 10 12 7 Detach 21 | . . . . 2 2 . . 2 . 2 . . 1 . . . 1 . . . 4 1 1 . 3 2 Swap 368 | 2 5 15 19 23 2 24 13 6 2 8 1 13 16 11 20 10 6 10 1 8 14 24 12 35 48 20 Drop 299 | . 7 19 29 15 19 11 9 10 6 2 1 4 5 21 1 4 2 1 18 5 13 9 10 25 39 14 Fire 1071 | 8 15 55 113 111 20 114 49 14 21 31 . 46 28 5 26 45 8 9 . 22 27 17 26 54 130 77 Melee 65 | . . 11 1 10 . 26 2 . 1 . . . . . . . . . 3 . . 10 . 1 . . Ram . | . . . . . . . . . . . . . . . . . . . . . . . . . . . Kick . | . . . . . . . . . . . . . . . . . . . . . . . . . . . Crush . | . . . . . . . . . . . . . . . . . . . . . . . . . . . Escape Stasis 6 | . . . . 2 . . 4 . . . . . . . . . . . . . . . . . . . Rewire 259 | . . . . . 35 . 194 . . . . . . 30 . . . . . . . . . . . . Trap . | . . . . . . . . . . . . . . . . . . . . . . . . . . . Miscellaneous 10 | . . . . . . . . . . . . . . . . . . . . . 1 1 . 2 1 5 Route ------- -11/Scrapyard -10/Materials (discovered 2 exits: [*Min] / *Sub) -10/Subcaves (discovered 4 exits: *Mat x2 / *Rec / [*Scr]) -8/Materials (discovered 3 exits: [*Fac x2] / *Sto) -8/Storage (discovered 2 exits: [*Fac] / *Rec) -8/Recycling -6/Factory (discovered 6 exits: *Fac x2 / Low x2 / *Ext x2) -6/Extension (discovered 2 exits: *Fac / *Cet) -6/Cetus (discovered 2 exits: *Fac / *Arc) -6/Archives (discovered 3 exits: *Fac / *Hub x2) -6/Hub_04(d) (discovered 2 exits: *Fac x2) -5/Factory -5/Upper Caves -5/Upper Caves (discovered 2 exits: *Fac / *War) -5/Warlord -4/Proximity Caves -4/Factory (discovered 3 exits: *Upp x2 / Arm) -4/Upper Caves -4/Upper Caves (discovered 2 exits: *Res / *Zhi) -4/Zhirov -3/Proximity Caves -3/Research (discovered 2 exits: *Res / *Tes) -3/Testing -2/Research (discovered 2 exits: *Acc / *Qua) -2/Quarantine (discovered 3 exits: *Acc / [*Sec] / *Frg) -2/Protoforge -1/Access To Epsilon Eridani History --------- Turn | Location | Event 3 | -11/Scrapyard | Discovered new exit (range 16) 166 | -11/Scrapyard | Entered Materials 167 | -10/Materials | Met a group of wandering Federalists 264 | -10/Materials | Discovered new exit (range 5) 284 | -10/Materials | Discovered new exit (range 7) 316 | -10/Materials | Build established: Mutant 610 | -10/Materials | Entered Subcaves 611 | -10/Subcaves | Continued accompanying wandering Federalists (6) 750 | -10/Subcaves | Learned Materials emergency access door positions 1038 | -10/Subcaves | Discovered new exit (range 12) 1734 | -10/Subcaves | Learned location of Zion (-7) 1734 | -10/Subcaves | Met a Zionite searching for "candidates" 2322 | -10/Subcaves | Discovered new exit (range 5) 2920 | -10/Subcaves | Core integrity fell below 50% 3389 | -10/Subcaves | Shifting Twisted Machinery released Sub. Beam Cannon 4030 | -10/Subcaves | Visited 4L-MR0's lab 4049 | -10/Subcaves | Found Tower Shield 4175 | -10/Subcaves | Discovered new exit (range 3) 5070 | -10/Subcaves | Entered Materials 5070 | -8/Materials | Evolved 4 slots: Utility x4 5071 | -8/Materials | Attached Tower Shield, gained temporary slots: Power, Propulsion x2, Utility x2, Weapon x2 5077 | -8/Materials | Discovered new exit (range 10) 5182 | -8/Materials | Garrison activated, responded to threat 5378 | -8/Materials | Build established: Scavenger-Tank 5789 | -8/Materials | Identified exit to Storage 6021 | -8/Materials | Build established: Scavenger-Mutant 6220 | -8/Materials | Central database locked down 6231 | -8/Materials | Discovered new exit (range 4) 7201 | -8/Materials | Discovered new exit (range 12) 7487 | -8/Materials | Entered Storage 7992 | -8/Storage | Build established: Hacker-Mutant 8115 | -8/Storage | Repaired Mak. Light Armor Plating 8383 | -8/Storage | Identified exit to Recycling 8437 | -8/Storage | Discovered new exit (range 15) 9257 | -8/Storage | Met 01-MTF 9477 | -8/Storage | Build established: Mutant 10518 | -8/Storage | Repaired Hrd. Medium Armor Plating 10558 | -8/Storage | Repaired Reactive Plating 10591 | -8/Storage | Repaired Imp. Ion Engine+ 10905 | -8/Storage | Entered Recycling 10905 | -8/Recycling | Accompanied by 1 ally (01-MTF) 11892 | -8/Recycling | Discovered new exit (range 16) 12533 | -8/Recycling | Entered Scraplab 12548 | -8/Recycling | Found SUBCON Basin 12627 | -8/Recycling | Found Prototype Device 12627 | -8/Recycling | Identified Scrap Engine 12865 | -8/Recycling | Entered Factory 12865 | -6/Factory | Accompanied by 2 allies 12865 | -6/Factory | Evolved 4 slots: Propulsion x2, Weapon x2 13150 | -6/Factory | Build established: Scavenger-Tank 13205 | -6/Factory | Watched by a mysterious "MATRIX" hacker. 13215 | -6/Factory | Search patrols dispatched 13405 | -6/Factory | Discovered new exit (range 6) 13413 | -6/Factory | Identified exit to Factory 14353 | -6/Factory | Central database locked down 14390 | -6/Factory | Discovered exit to Factory (range 16) 14413 | -6/Factory | Identified exit to Lower Caves 14413 | -6/Factory | Identified exit to Extension 14945 | -6/Factory | Build established: Scavenger-Skirmisher 15192 | -6/Factory | Entered Extension 15518 | -6/Extension | Rescued a captive Derelict 15643 | -6/Extension | Rescued a captive Derelict 15644 | -6/Extension | Rescued a captive Derelict 15747 | -6/Extension | Build established: Commander-Gunner 16326 | -6/Extension | Spotted B-75 Beast 16335 | -6/Extension | Destroyed B-75 Beast 16349 | -6/Extension | Spotted B-75 Beast 16356 | -6/Extension | Allies destroyed B-75 Beast 16364 | -6/Extension | Lost 3 allies 16402 | -6/Extension | Lost 3 allies 16444 | -6/Extension | Rescued A7 16942 | -6/Extension | First assault squad dispatched 17062 | -6/Extension | Lost 17 allies 17186 | -6/Extension | Discovered exit to Factory (range 10) 17189 | -6/Extension | Discovered new exit (range 6) 17219 | -6/Extension | Identified exit to Cetus 17290 | -6/Extension | Entered Cetus 17290 | -6/Cetus | Accompanied by 2 allies (A7) 17295 | -6/Cetus | Acquired a Cetus Manufacturing Module code from A7 17320 | -6/Cetus | Spotted Cetus Guard 17320 | -6/Cetus | Spotted Cetus Guard 17325 | -6/Cetus | Spotted Cetus Guard 17332 | -6/Cetus | Allies destroyed Cetus Guard 17332 | -6/Cetus | Spotted Cetus Guard 17341 | -6/Cetus | Allies destroyed Cetus Guard 17343 | -6/Cetus | Allies destroyed Cetus Guard 17349 | -6/Cetus | Allies destroyed Cetus Guard 17465 | -6/Cetus | Started Cetus Manufacturing Module 17475 | -6/Cetus | Escorted A7 to Cetus Mainframe 17490 | -6/Cetus | Manufactured an Enhanced Grunt 17499 | -6/Cetus | Discovered new exit (range 15) 17507 | -6/Cetus | Build established: Tank 17515 | -6/Cetus | Manufactured an Enhanced Grunt 17540 | -6/Cetus | Manufactured an Enhanced Grunt 17565 | -6/Cetus | Manufactured an Enhanced Grunt 17590 | -6/Cetus | Manufactured an Enhanced Grunt 17610 | -6/Cetus | Spotted Cetus Guard 17611 | -6/Cetus | Spotted Cetus Guard 17614 | -6/Cetus | Spotted Cetus Guard 17616 | -6/Cetus | Spotted Cetus Guard 17620 | -6/Cetus | Allies destroyed Cetus Guard 17631 | -6/Cetus | Allies destroyed Cetus Guard 17632 | -6/Cetus | Allies destroyed Cetus Guard 17638 | -6/Cetus | Allies destroyed Cetus Guard 17650 | -6/Cetus | Discovered exit to Factory (range 16) 17659 | -6/Cetus | Met Revision 17 17730 | -6/Cetus | Identified exit to Archives 17739 | -6/Cetus | Entered Archives 17739 | -6/Archives | Accompanied by 6 allies (A7) 17744 | -6/Archives | Received a hacking code to weaken MAIN.C 17806 | -6/Archives | Discovered new exit (range 15) 17829 | -6/Archives | Build established: Commander-Tank 17881 | -6/Archives | Discovered exit to Factory (range 16) 17895 | -6/Archives | Discovered new exit (range 16) 17921 | -6/Archives | Identified exit to Hub_04(d) 18230 | -6/Archives | Build established: Commander-Skirmisher 18435 | -6/Archives | Entered Hub_04(d) 18435 | -6/Hub_04(d) | Accompanied by 4 allies 18803 | -6/Hub_04(d) | Discovered exit to Factory (range 5) 18966 | -6/Hub_04(d) | Discovered exit to Factory (range 15) 19184 | -6/Hub_04(d) | Build established: Skirmisher 19662 | -6/Hub_04(d) | Garrison activated, responded to threat 19693 | -6/Hub_04(d) | Network Hub disabled 19785 | -6/Hub_04(d) | Network Hub disabled 19818 | -6/Hub_04(d) | Network Hub disabled 19846 | -6/Hub_04(d) | Entered Factory 19846 | -5/Factory | Evolved 2 slots: Power x1, Utility x1 19988 | -5/Factory | Discovered new exit (range 6) 19998 | -5/Factory | Identified exit to Upper Caves 20000 | -5/Factory | Unchained authorized (DW-4LL) 20000 | -5/Factory | Entered Upper Caves 20134 | -5/Upper Caves | Build established: Scavenger-Tank 20561 | -5/Upper Caves | Encountered a Warlord checkpoint 21342 | -5/Upper Caves | Discovered new exit (range 16) 21365 | -5/Upper Caves | Identified exit to Upper Caves 21472 | -5/Upper Caves | Learned location of 1 exit from Factory 22238 | -5/Upper Caves | Build established: Scavenger-Skirmisher 24821 | -5/Upper Caves | Attracted the attention of an 0b10 checkpoint 24832 | -5/Upper Caves | Build established: Scavenger-Tank 25265 | -5/Upper Caves | Entered another Upper Caves area 25354 | -5/Upper Caves | Learned Factory terminal intel 25451 | -5/Upper Caves | Discovered new exit (range 12) 25470 | -5/Upper Caves | Identified exit to Factory 26264 | -5/Upper Caves | Build established: Scavenger-Skirmisher 26806 | -5/Upper Caves | Discovered new exit (range 6) 26816 | -5/Upper Caves | Identified exit to Warlord 27178 | -5/Upper Caves | Attracted the attention of an 0b10 base 27179 | -5/Upper Caves | Learned Extension garrison access intel 27179 | -5/Upper Caves | Learned Armory terminal intel 27254 | -5/Upper Caves | Entered Warlord 27560 | -5/Warlord | Found Prototype Special Weapon 27561 | -5/Warlord | Identified RU-N14's Throwing Claymores v3 27564 | -5/Warlord | Found RU-N14's Throwing Claymores v3 27590 | -5/Warlord | Found Prototype Device 27590 | -5/Warlord | Identified Minesniffer Drone Bay 27694 | -5/Warlord | Received a Watcher feed algorithm from an ecstatic Tinkerer 27835 | -5/Warlord | Found Prototype Device 27856 | -5/Warlord | Found Prototype Processor 27859 | -5/Warlord | Found Prototype Device 27924 | -5/Warlord | Identified Exp. Core Analyzer 27948 | -5/Warlord | Identified Exp. Phase Shifter 28038 | -5/Warlord | Met Warlord 28050 | -5/Warlord | Warlord's base attacked by MAIN.C 28133 | -5/Warlord | Build established: Commander-Tank 28147 | -5/Warlord | Identified Thermal Barrier 28147 | -5/Warlord | Found Prototype Energy Gun 28151 | -5/Warlord | Identified Vortex Rifle 28151 | -5/Warlord | Found Vortex Rifle 28400 | -5/Warlord | Warlord forces counterattacked 28405 | -5/Warlord | Spotted Striker 28455 | -5/Warlord | Lost 10 allies 28566 | -5/Warlord | Opened side exit 28596 | -5/Warlord | Discovered new exit (range 11) 28607 | -5/Warlord | Identified exit to Proximity Caves 28614 | -5/Warlord | Entered Proximity Caves 28614 | -4/Proximity Caves | Accompanied by 2 allies 28643 | -4/Proximity Caves | Lost 4 allies 28902 | -4/Proximity Caves | Build established: Scavenger-Skirmisher 29817 | -4/Proximity Caves | Attracted the attention of an 0b10 checkpoint 30306 | -4/Proximity Caves | Discovered exit to Factory (range 13) 30488 | -4/Proximity Caves | Entered Factory 30488 | -4/Factory | Accompanied by 1 ally 30488 | -4/Factory | Evolved 2 slots: Propulsion x1, Utility x1 30489 | -4/Factory | Identified exit to Upper Caves 30490 | -4/Factory | Loaded intel: 26 terminal locations 31109 | -4/Factory | Identified exit to Armory 31240 | -4/Factory | Build established: Scavenger-Tank 31326 | -4/Factory | Entered Upper Caves 32299 | -4/Upper Caves | Learned 4 Research zone layouts 33345 | -4/Upper Caves | Discovered new exit (range 9) 33408 | -4/Upper Caves | Identified exit to Upper Caves 33478 | -4/Upper Caves | Entered another Upper Caves area 33605 | -4/Upper Caves | Discovered new exit (range 9) 33624 | -4/Upper Caves | Identified exit to Research 34210 | -4/Upper Caves | Attracted the attention of an 0b10 checkpoint 35398 | -4/Upper Caves | Discovered new exit (range 5) 35405 | -4/Upper Caves | Identified exit to Zhirov 35448 | -4/Upper Caves | Learned location of Testing (-3) 35571 | -4/Upper Caves | Entered Zhirov 35573 | -4/Zhirov | Discovered new exit (range 3) 35602 | -4/Zhirov | Met Zhirov 35637 | -4/Zhirov | Learned location of Command (-1) 35647 | -4/Zhirov | Zhirov requested help retrieving the SGEMP Prototype 35676 | -4/Zhirov | Found Alien Artifact 35676 | -4/Zhirov | Identified Integrated Dissipator 35676 | -4/Zhirov | Installed Integrated Dissipator, increased core heat dissipation (+20) 35695 | -4/Zhirov | Found Alien Artifact 36031 | -4/Zhirov | Identified exit to Proximity Caves 36033 | -4/Zhirov | Entered Proximity Caves 36274 | -3/Proximity Caves | Spotter reported a threat 36310 | -3/Proximity Caves | Build established: Tank 36358 | -3/Proximity Caves | Spotter reported a threat 36810 | -3/Proximity Caves | Discovered exit to Research (range 16) 36896 | -3/Proximity Caves | Entered Research 36896 | -3/Research | Evolved 2 slots: Propulsion x1, Utility x1 37096 | -3/Research | Revision forces began assault on 0b10 37210 | -3/Research | Met up with Revision 17++ 37596 | -3/Research | Research terminal network offline 37869 | -3/Research | Spotted Striker 37905 | -3/Research | Central database locked down 37916 | -3/Research | Lost 5 allies 37928 | -3/Research | Destroyed Striker 38039 | -3/Research | Discovered new exit (range 6) 38045 | -3/Research | Identified exit to Research 38465 | -3/Research | Spotted Striker 38492 | -3/Research | Discovered new exit (range 30) 38549 | -3/Research | Identified exit to Testing 38562 | -3/Research | Entered Testing 38628 | -3/Testing | Found Tactical Quantum Warhead 38790 | -3/Testing | Spotted PD-4GL3NCRGKZ 38938 | -3/Testing | Scanned by Researcher 39109 | -3/Testing | Found Prototype Energy Cannon 39469 | -3/Testing | Discovered exit to Research (range 11) 39627 | -3/Testing | Found Prototype Energy Cannon 39627 | -3/Testing | Identified Disintegrator 39701 | -3/Testing | Entered Research 39701 | -2/Research | Warlord forces began assault on 0b10 39701 | -2/Research | Evolved 2 slots: Power x1, Utility x1 39811 | -2/Research | Research machine network offline 40065 | -2/Research | Discovered new exit (range 47) 40133 | -2/Research | Discovered new exit (range 76) 40189 | -2/Research | Identified exit to Quarantine 40268 | -2/Research | Entered Quarantine 40307 | -2/Quarantine | Identified exit to Access 40327 | -2/Quarantine | Found Alien Artifact 40422 | -2/Quarantine | Build established: Scientist-Tank 40426 | -2/Quarantine | Unchained authorized (DW-4LL) 40426 | -2/Quarantine | Identified Phase Redirector 40479 | -2/Quarantine | Cryocooling Duct disabled 40494 | -2/Quarantine | Ambient heat levels rising (+20) 40494 | -2/Quarantine | Non-combat units ordered to evacuate 40714 | -2/Quarantine | Found Alien Artifact 40841 | -2/Quarantine | Found Alien Artifact 40850 | -2/Quarantine | Found Alien Artifact 40858 | -2/Quarantine | Found Alien Artifact 40923 | -2/Quarantine | DW-4LL burst out of a wall 40933 | -2/Quarantine | System corruption reached 10% 40942 | -2/Quarantine | Destroyed DW-4LL 40958 | -2/Quarantine | Identified Imp. Potential Cannon 40961 | -2/Quarantine | Found Prototype Device 40963 | -2/Quarantine | Identified Exp. Weapon Cycler 40963 | -2/Quarantine | Lost 3 parts (3u) 40965 | -2/Quarantine | Found Prototype Processor 40970 | -2/Quarantine | Identified Zeronet Interface 41064 | -2/Quarantine | Found Alien Artifact 41158 | -2/Quarantine | Found Alien Impact Weapon 41238 | -2/Quarantine | Identified Core Stripper 41257 | -2/Quarantine | Spotted Fortress 41267 | -2/Quarantine | Destroyed Fortress 41295 | -2/Quarantine | Found Prototype Device 41295 | -2/Quarantine | Identified Exp. EM Shield 41299 | -2/Quarantine | Found Prototype Device 41299 | -2/Quarantine | Identified Exp. Force Field 41460 | -2/Quarantine | Discovered new exit (range 6) 41460 | -2/Quarantine | Discovered new exit (range 7) 41467 | -2/Quarantine | Entered Protoforge 41477 | -2/Protoforge | Targeted by mysterious "MATRIX" hacker. 41523 | -2/Protoforge | Spotted Hotshot 41523 | -2/Protoforge | Spotted Hotshot 41523 | -2/Protoforge | Spotted Hotshot 41523 | -2/Protoforge | Spotted Hotshot 41534 | -2/Protoforge | Destroyed Hotshot 41543 | -2/Protoforge | Destroyed Hotshot 41545 | -2/Protoforge | Destroyed Hotshot 41561 | -2/Protoforge | Destroyed Hotshot 41656 | -2/Protoforge | Discovered exit to Access (range 15) 41777 | -2/Protoforge | Additional patrols dispatched to research labs 41777 | -2/Protoforge | Superfortress began startup sequence 41827 | -2/Protoforge | Build established: Scavenger-Tank 41848 | -2/Protoforge | Spotted Immortal 41850 | -2/Protoforge | Spotted Immortal 41865 | -2/Protoforge | Destroyed Immortal 41897 | -2/Protoforge | Destroyed Immortal 41935 | -2/Protoforge | Spotted Decapitator 41935 | -2/Protoforge | Spotted Decapitator 41935 | -2/Protoforge | Spotted Decapitator 41935 | -2/Protoforge | Spotted Decapitator 41936 | -2/Protoforge | Destroyed Decapitator 41942 | -2/Protoforge | Destroyed Decapitator 41947 | -2/Protoforge | Destroyed Decapitator 41979 | -2/Protoforge | Identified Transdimensional Reconstructor (x2) 41983 | -2/Protoforge | Found Cep. NT7 Matterbank 41992 | -2/Protoforge | Found Prototype Device 42035 | -2/Protoforge | Identified Dimensional Node Initializer 42035 | -2/Protoforge | Initialized slip node 42039 | -2/Protoforge | Found Cep. Antigrav Storage Unit 42051 | -2/Protoforge | Found Cep. Matter Streamer 42055 | -2/Protoforge | Found Prototype Storage 42056 | -2/Protoforge | Identified Cep. Chromion Battery 42065 | -2/Protoforge | Found Cep. Chromion Battery 42077 | -2/Protoforge | Found Cep. Chromion Battery 42120 | -2/Protoforge | Destroyed Decapitator 42221 | -2/Protoforge | Found Cep. Helical Railcannon 42232 | -2/Protoforge | Found Cep. Helical Railcannon 42281 | -2/Protoforge | Found Cep. Plasma Driver 42367 | -2/Protoforge | Spotted V641-z 42379 | -2/Protoforge | Destroyed V641-z 42410 | -2/Protoforge | Found Prototype Device 42413 | -2/Protoforge | Identified Exp. EM Disruption Field 42415 | -2/Protoforge | Found Cep. XC Strikerail 42469 | -2/Protoforge | Spotted V016-q 42474 | -2/Protoforge | Spotted Immortal 42475 | -2/Protoforge | Destroyed V016-q 42475 | -2/Protoforge | Destroyed Immortal 42476 | -2/Protoforge | Spotted Immortal 42500 | -2/Protoforge | Destroyed Immortal 42509 | -2/Protoforge | Destroyed Immortal 42531 | -2/Protoforge | Build established: Tank 42566 | -2/Protoforge | Destroyed 10 combat bots 42612 | -2/Protoforge | Found Prototype Device 42616 | -2/Protoforge | Found Prototype Device 42618 | -2/Protoforge | Identified Crosscalibrator 42618 | -2/Protoforge | Found Cep. Countertargeting System 42624 | -2/Protoforge | Found Faulty Cep. Hypertargeting System 42625 | -2/Protoforge | Identified Cep. Recoil Nullifier (x2) 42629 | -2/Protoforge | Spotted V213-r 42632 | -2/Protoforge | Spotted V846-k 42639 | -2/Protoforge | Spotted V334-o 42642 | -2/Protoforge | Spotted V253-q 42648 | -2/Protoforge | Destroyed V846-k 42656 | -2/Protoforge | Destroyed V334-o 42668 | -2/Protoforge | Destroyed V253-q 42671 | -2/Protoforge | Destroyed V213-r 42691 | -2/Protoforge | Found Faulty Cep. Hypertargeting System 42692 | -2/Protoforge | Destroyed 10 combat bots 42717 | -2/Protoforge | First assault squad dispatched 42729 | -2/Protoforge | Found Prototype Device 42733 | -2/Protoforge | Found Prototype Device 42742 | -2/Protoforge | Identified Femtoactuators (x2) 42890 | -2/Protoforge | Found Cep. Deflector Sword 42984 | -2/Protoforge | Spotted Decapitator 42984 | -2/Protoforge | Spotted Decapitator 42985 | -2/Protoforge | Destroyed Decapitator 42985 | -2/Protoforge | Spotted Decapitator 42989 | -2/Protoforge | Destroyed Decapitator 42989 | -2/Protoforge | Spotted Decapitator 42990 | -2/Protoforge | Spotted Overlord 42993 | -2/Protoforge | Destroyed Decapitator 42999 | -2/Protoforge | Destroyed Overlord 43037 | -2/Protoforge | Found Prototype Device 43046 | -2/Protoforge | Found Exp. Active Sensor Suite 43052 | -2/Protoforge | Lost 3 parts (1p1n1u) 43054 | -2/Protoforge | Identified Adv. Kinecellerator 43060 | -2/Protoforge | Entered Access 43060 | -1/Access | Evolved 2 slots: Utility x2 43177 | -1/Access | Spotted B-99 Colossus 43223 | -1/Access | Garrison activated, responded to threat 43266 | -1/Access | Destroyed 10 combat bots 43288 | -1/Access | Build established: Gunner 43437 | -1/Access | Lost 3 allies 43560 | -1/Access | First assault squad dispatched 43660 | -1/Access | Destroyed 12 combat bots 43732 | -1/Access | Garrison activated, responded to threat 44000 | -1/Access | Discovered new exit (range 3) 44001 | -1/Access | Identified exit to Surface 44003 | -1/Access | Identified Subatomic Replicator 44003 | -1/Access | Used Subatomic Replicator to replicate Cep. Deflector Sword 44011 | *** | Escaped! Last Messages --------------- 43948_ Destroyed Med. Treads. 43948_ Railslug penetrates G-73 Enforcer. 43948_ G-73 Enforcer destroyed. 43948_ Railslug penetrates A-15 Conveyor. 43948_ A-15 Conveyor destroyed. 43951_ Railslug penetrates G-73 Enforcer. 43951_ G-73 Enforcer destroyed. 43971_ Acquired 60 matter. 43979_ Connecting with Terminal... 43984_ Plasma Slug penetrates Sealed Barrier. 43993_ Sealed Barrier breached. 44000_ M 7PB0VMT:LEH1WWH=OX==>QQO#CECRYR 44000_ EXIT=FOUND 44001_ EXIT=IDENTIFIED: SURFACE 44003_ Dropped Cep. Deflector Sword. 44003_ Identified Subatomic Replicator. 44003_ Replicated Cep. Deflector Sword. 44006_ Acquired Cep. Deflector Sword. [Achievement: Force of Scrap] [Achievement: On My Own Terms] Map ----- +----------------------------------------------------+ | ?????????????????????????????????????# !! | | ?????????????????????????????????????# | | ?????????????????????????????????????# | | ??????????????????????????????### ############+### | | ?????????????????????????????? | | ?????????????????????????????? | | ??????????????????????????????????#### ### | | ?????????????????????????????????????# #?? | | ?????????????????????????????????????# #?? | | ?????????????????###?????????????????# #?? | | ??????????????####""################## #?? | | ????????????? *%%%%== #?? | | ????????????? k !==%[=%! #?? | | ????????????????????# = ! [""#####+###########?? | | ????????????????????# ""#?? ??????????? | | ????????????????????# ""#?# ????????? | | ????????????????????# T#?# """"" ??????? | | ????????????????????# ""#?#"""""""" ????? | | ????????????????????# ""#?#"""""""" #??? | | ????????????????????# ""#?# """"" *#??? | | ????????????????????""""""" """"?# ???????#??? | | ????????????????????# #?# ?????????????? | | ????????????????????# #?# ?????????????? | | ????????????????????# " """ #?# ??????????????? | | ????????????????????# ?" #?????????????????? | | ???????????????????????" @" #?????????????????? | | ???????????????????????" "" #?????????????????? | | ???????????????????????" #?????????????????? | | ???????????????????????"""""" #?????????????????? | | ????????????????????????????? #?????????????????? | | ?????????????????????????????""#?????????????????? | | ?????????????????????????????????????????????????? | | ?????????????????????????????????????????????????? | | ?????????????????????????????????????????????????? | | ?????????????????????????????????????????????????? | | ??????????????????????BB????BB???????????????????? | | ??????????????????????BB????BB???????????????????? | | ?????????????????????????????????????????????????? | | ?????????????????????????????????????????????????? | | ?????????????????????????????????????????????????? | | ?????????????????????????????????????????????????? | | ?????????????????????????????????????????????????? | | ?????????????????????????????????????????????????? | | ?????????????????????????????????????????????????? | | ?????????????????????????????????????????????????? | | ?????????????????????????????????????????????????? | | ?????????????????????????????????????????????????? | | ?????????????????????????????????????????????????? | | ?????????????????????????????????????????????????? | | ?????????????????????????????????????????????????? | +----------------------------------------------------+ Best States ------------- Heat Dissipation 144 Coolant Potential 120 Energy Generation 67 Energy Capacity 901 Matter Stores 300 Matter Capacity 300 Sight Range 16 Robot Scan Range 18 Terrain Scan Range 16 Terrain Scan Density 10 Jamming Range 16 Armor Coverage 2800 Resistance: KI 20 Weapon Cycling 30 Phase Shifting 20 Evasion (%) 60 Core Analysis 8 Recoil Reduction 6 Kinecelleration 50 Offensive Hacking 14 Defensive Hacking 11 Item Schematics ----------------- Assault Drone Bay | -4/Zhirov | Free Exp. Heat Sink | -4/Zhirov | Free Exp. Optical Array | -4/Zhirov | Free Imp. Arc Thrower | -4/Zhirov | Free Exp. Thermal Defense Suite | -3/Testing | Archive Adv. Myomer Leg | -3/Testing | Archive Exp. Signal Interpreter | -3/Testing | Archive Exp. ECM Suite | -2/Protoforge | Archive Graviton Reactor | -2/Protoforge | Archive Plasma Lance | -2/Protoforge | Archive Adv. Remote Shield | -2/Protoforge | Archive Hvy. Proton Missile Launcher | -2/Protoforge | Archive Exp. Gyrokinetic Inverter | -2/Protoforge | Archive Prc. Phase Gun | -2/Protoforge | Archive Exp. Biometal Leg | -2/Protoforge | Archive Robot Schematics ------------------ W-44 Eye | -3/Testing | Archive A-15 Conveyor | -3/Testing | Archive A-27 Freighter | -3/Testing | Archive B-74 Champion | -2/Protoforge | Archive C-65 Expert | -2/Protoforge | Archive Y-72 Warden | -2/Protoforge | Archive Fabricated ------------ Nothing Repaired ---------- Mak. Light Armor Plating | 52% | -8/Storage Hrd. Medium Armor Plating | 18% | -8/Storage Reactive Plating | 27% | -8/Storage Imp. Ion Engine | 10% | -8/Storage Studied --------- Autogun | -8/Materials | Hacked Com. Wheel | -8/Materials | Hacked Wheel | -8/Materials | Hacked Lgt. Treads | -8/Materials | Hacked Imp. Ion Engine | -8/Materials | Hacked Imp. Deuterium Engine | -6/Factory | Hacked Enh. Gauss Cannon | -4/Factory | Hacked Hvy. Missile Launcher | -4/Factory | Hacked Hvy. Phase Cannon | -4/Factory | Hacked Hyp. Mass Driver | -4/Factory | Hacked Magnetic Acceleration Cannon | -4/Factory | Hacked Quantum Reactor | -3/Research | Hacked HERF Cannon | -3/Research | Hacked Com. HERF Cannon | -3/Testing | Hacked Mass Driver | -3/Testing | Hacked Enh. Nova Cannon | -2/Protoforge | Hacked Alien Tech Used ----------------- Integrated Dissipator Phase Redirector Core Stripper Dimensional Node Initializer Subatomic Replicator Achievements -------------- Art Critic Bigger And Badder Force of Scrap I Laugh At Your Crits Irresistible Scrap Like A Rock Mistaken Identity Network Effect Not Immortal After All Not So Scrappy On My Own Terms Partsplosion Scrappetite Strength In Numbers Suspicious Tailor-made The Better Part Of Valor Challenges ------------ None Game ------ Seed SmartbombAuthchipBotcube Manual? 0 Play Time 11:02:32 Cumulative 610.3 hours Start 2026.03.23 @ 07:45:31 End 2026.04.02 @ 13:43:34 Sessions 33 Manual Loads 0 Difficulty Rogue Special Mode None Game No. 122 Rogue 114 Adventurer 1 Explorer 7 Win Type 0 Total 51 Types 17/4/15/1/1/1/8/1/1/2 Lore% 78 Gallery% 81 Achievement% 59 Wizard Run 0 Options --------- Layout 0 ASCII 0 Keyboard 0 Movement Mouse Keybinds 0 Fullscreen 1 Font 24/Smallcaps Map View 76x50 Zoom Use 0% Tactical HUD 1 Map Filters NONE Filters NONE Steam 1 RUN: 853494d6-5783-45ad-bb74-7bf046829892